bitfinex/quotes_SOLUSD_20251103
["timestamp","ask_amount","ask_price","bid_price","bid_amount"]
[1762206672488,4.01812741,166.4,166.36,10.48882769]
[1762206672683,0.1,166.41,166.36,9.78882769]
[1762206672888,4.71817197,166.4,166.36,9.78882769]
[1762206673113,4.01817197,166.39,166.38,20.592]
[1762206673311,4.71817197,166.39,166.32,30.38082769]
[1762206673620,4.01817197,166.38,166.33,0.14216157]
[1762206673824,0.7,166.4,166.28,9.78882769]
[1762206673989,0.7,166.4,166.27,0.7]
[1762206673990,5.02184735,166.35,166.27,0.7]
[1762206674190,5.02184735,166.29,166.21,0.7]
[1762206674409,5.02184735,166.26,166.17,6.21762251]
[1762206674620,4.02733266,166.25,166.19,0.7]
[1762206674796,20.592,166.28,166.19,0.7]
[1762206674797,9.04918001,166.24,166.19,0.7]
[1762206675100,4.02733266,166.23,166.17,0.2]
[1762206675297,4.02733266,166.22,166.17,0.9]
[1762206675501,10.71427853,166.26,166.19,9.78882769]
[1762206675698,4.02989092,166.25,166.19,31.08082769]
[1762206675906,4.02989092,166.24,166.21,9.78882769]
[1762206676108,4.02989092,166.23,166.21,9.78882769]
[1762206676303,6.7146758,166.26,166.21,9.78882769]
[1762206676509,4.02812195,166.25,166.21,9.78882769]
[1762206676796,3.92812195,166.24,166.21,9.78882769]
[1762206677116,0.7,166.25,166.19,20.592]
[1762206677419,6.0146758,166.26,166.2,9.78882769]
[1762206677618,6.0146758,166.26,166.2,10.48882769]
[1762206677921,6.01431406,166.27,166.2,10.48882769]
[1762206678224,6.71431406,166.27,166.2,10.48882769]
[1762206678430,21.05009922,166.27,166.2,9.78882769]
[1762206678636,21.05009922,166.27,166.17,0.2]
[1762206678637,5.02184735,166.21,166.17,0.2]
[1762206678801,5.02184735,166.2,166.17,0.2]
[1762206679338,0.7,166.22,166.17,0.2]
[1762206679836,5.02184735,166.19,166.17,0.2]
[1762206680036,5.02184735,166.18,166.17,0.2]
[1762206680426,5.72184735,166.18,166.17,0.2]
[1762206681220,5.86400892,166.18,166.17,1e-08]
[1762206681453,0.84216157,166.17,166.15,1e-08]
[1762206681732,5.02184735,166.16,166.15,1e-08]
[1762206682036,11.04014296,166.16,166.15,1e-08]
[1762206682236,11.74014296,166.16,166.15,1e-08]
[1762206686754,6.71829561,166.16,166.15,1e-08]
[1762206686965,11.74014296,166.16,166.15,1e-08]
[1762206689958,6.01829561,166.16,166.15,1e-08]
[1762206690139,11.71014296,166.16,166.15,1e-08]
[1762206691249,6.01829561,166.16,166.15,1e-08]
[1762206691456,0.67,166.19,166.15,1e-08]
[1762206691629,5.69184735,166.19,166.15,1e-08]
[1762206691829,0.67,166.22,166.15,21.27200001]
[1762206692045,0.67,166.22,166.16,9.78882769]
[1762206692269,0.67,166.22,166.16,10.46882769]
[1762206692760,6.01576129,166.23,166.17,0.7]
[1762206693259,6.01539942,166.24,166.18,9.78882769]
[1762206693566,6.01539942,166.24,166.19,0.7]
[1762206693876,6.0146758,166.26,166.2,9.78882769]
[1762206694163,6.0146758,166.26,166.21,0.7]
[1762206694379,6.01401028,166.28,166.21,0.7]
[1762206694665,6.01401028,166.28,166.22,9.78882769]
[1762206694837,6.01401028,166.28,166.23,0.7]
[1762206695245,0.7,166.28,166.23,0.7]
[1762206697146,6.01431406,166.27,166.23,0.7]
[1762206698077,6.01431406,166.27,166.22,9.78882769]
[1762206698078,0.7,166.26,166.22,9.78882769]
[1762206698245,6.01431406,166.27,166.23,0.7]
[1762206698648,0.7,166.26,166.21,9.78882769]
[1762206699078,21.05009922,166.27,166.22,0.7]
[1762206699278,6.01431406,166.27,166.22,0.7]
[1762206699476,6.71431406,166.27,166.22,0.7]
[1762206700157,6.01431406,166.27,166.22,0.7]
[1762206700355,6.01359071,166.29,166.22,0.7]
[1762206700681,5.02184735,166.28,166.22,20.592]
[1762206700860,5.72184735,166.28,166.22,20.592]
[1762206701056,0.7,166.27,166.22,20.592]
[1762206701268,21.05136532,166.26,166.2,9.78882769]
[1762206701563,26.07321267,166.26,166.2,21.292]
[1762206701770,5.72184735,166.25,166.18,0.7]
[1762206701976,5.72184735,166.25,166.19,0.7]
[1762206702152,5.72184735,166.25,166.19,21.292]
[1762206703170,6.01539942,166.24,166.19,20.592]
[1762206703376,6.01539942,166.24,166.2,10.48882769]
[1762206703568,6.01539942,166.24,166.21,0.7]
[1762206703876,6.01539942,166.24,166.2,10.48882769]
[1762206704376,6.01539942,166.24,166.2,9.78882769]
[1762206704582,0.7,166.23,166.18,10.48882769]
[1762206704867,0.7,166.23,166.18,21.292]
[1762206705070,21.05389797,166.24,166.19,0.7]
[1762206705253,21.75389797,166.24,166.19,0.7]
[1762206705649,0.7,166.23,166.19,0.7]
[1762206705869,0.7,166.23,166.18,20.592]
[1762206706174,0.7,166.23,166.18,21.292]
[1762206708162,6.01539942,166.24,166.19,10.48882769]
[1762206708561,6.01539942,166.24,166.2,0.7]
[1762206709364,21.05160858,166.26,166.2,0.7]
[1762206709563,21.75160858,166.26,166.2,0.7]
[1762206711559,21.75160858,166.26,166.21,30.38082769]
[1762206711560,6.0146758,166.26,166.21,30.38082769]
[1762206711794,0.7,166.25,166.19,0.7]
[1762206711995,0.7,166.25,166.2,20.592]
[1762206712480,0.7,166.25,166.21,0.7]
[1762206713363,6.01539942,166.24,166.21,0.7]
[1762206714077,6.0146758,166.26,166.21,0.7]
[1762206714270,6.0146758,166.26,166.22,9.78882769]
[1762206714470,6.0146758,166.26,166.23,0.7]
[1762206714668,6.0143663,166.27,166.23,0.7]
[1762206715465,6.01395236,166.28,166.23,0.7]
[1762206715695,21.74883328,166.28,166.23,0.7]
[1762206715886,0.7,166.27,166.22,9.78882769]
[1762206716089,0.7,166.27,166.2,26.60880412]
[1762206716090,5.72184735,166.27,166.21,9.78882769]
[1762206716392,0.7,166.27,166.21,10.48882769]
[1762206716690,0.7,166.27,166.22,0.7]
[1762206717586,6.0146758,166.26,166.22,0.7]
[1762206718179,10.04554142,166.26,166.22,0.7]
[1762206718685,25.78223094,166.26,166.21,9.78882769]
[1762206718863,4.73086562,166.25,166.21,0.7]
[1762206719668,6.01539942,166.24,166.21,0.7]
[1762206720794,0.7,166.23,166.17,9.78882769]
[1762206720993,5.02184735,166.21,166.14,0.7]
[1762206721494,5.72184735,166.21,166.16,20.592]
[1762206721896,21.05389797,166.24,166.16,20.592]
[1762206721897,26.78081245,166.2,166.16,0.7]
[1762206722194,6.01649605,166.21,166.17,0.7]
[1762206722383,5.02184735,166.19,166.15,1e-08]
[1762206722579,5.02184735,166.18,166.15,1e-08]
[1762206722899,5.02184735,166.17,166.15,1e-08]
[1762206723274,0.7,166.16,166.15,1e-08]
[1762206723876,6.71829561,166.16,166.15,1e-08]
[1762206724082,6.01829561,166.16,166.15,1e-08]
[1762206724492,10.053415,166.16,166.15,1e-08]
[1762206724677,6.71829561,166.16,166.15,1e-08]
[1762206724876,15.77526235,166.16,166.15,1e-08]
[1762206726599,18.52149548,166.16,166.15,1e-08]
[1762206726815,10.053415,166.16,166.15,1e-08]
[1762206727098,13.78456564,166.21,166.15,0.70000001]
[1762206727304,4.73491865,166.2,166.15,1e-08]
[1762206727503,4.03491865,166.19,166.15,1e-08]
[1762206727698,4.03491865,166.19,166.15,0.70000001]
[1762206728199,6.0175713,166.18,166.15,0.70000001]
[1762206728504,6.0175713,166.18,166.15,1e-08]
[1762206728505,7.76808048,166.17,166.15,1e-08]
[1762206728710,4.03491865,166.17,166.15,1e-08]
[1762206730409,6.01829561,166.16,166.15,1e-08]
[1762206731089,14.48637609,166.16,166.15,1e-08]
[1762206731284,18.523414,166.16,166.15,1e-08]
[1762206735109,4.03703791,166.16,166.15,1e-08]
[1762206735311,6.01782332,166.18,166.15,0.70000001]
[1762206735509,6.01708652,166.2,166.15,0.70000001]
[1762206735811,10.05472366,166.21,166.16,9.78882769]
[1762206736017,6.0165995,166.21,166.16,9.78882769]
[1762206736192,0.7,166.2,166.15,20.59200001]
[1762206736706,4.03812416,166.21,166.16,0.7]
[1762206736897,0.7,166.21,166.16,0.7]
[1762206737517,8.46808048,166.21,166.15,20.59200001]
[1762206738018,8.46808048,166.21,166.15,21.29200001]
[1762206738311,0.7,166.21,166.15,21.29200001]
[1762206738692,21.0589651,166.2,166.15,21.29200001]
[1762206739117,21.7589651,166.2,166.15,21.29200001]
[1762206739896,21.7589651,166.2,166.15,0.70000001]
[1762206743517,6.01657615,166.21,166.15,0.70000001]
[1762206743708,6.01657615,166.21,166.16,9.78882769]
[1762206744107,6.01657615,166.21,166.17,0.7]
[1762206745801,21.05778907,166.21,166.17,0.7]
[1762206746410,6.01657615,166.21,166.17,0.7]
[1762206746816,0.7,166.2,166.15,1e-08]
[1762206747019,21.05778907,166.21,166.16,0.7]
[1762206747538,0.7,166.2,166.16,0.7]
[1762206749228,4.74221976,166.2,166.16,0.7]
[1762206749842,6.01720921,166.19,166.15,1e-08]
[1762206750030,6.01720921,166.19,166.15,0.71000001]
[1762206750631,21.06023225,166.19,166.15,0.71000001]
[1762206751811,21.76023225,166.19,166.15,0.71000001]
[1762206752505,0.71,166.18,166.15,1e-08]
[1762206753320,4.75337551,166.18,166.15,1e-08]
[1762206753631,6.01793344,166.17,166.15,1e-08]
[1762206753807,6.72793344,166.17,166.15,1e-08]
[1762206755742,6.01793344,166.17,166.15,0.67000001]
[1762206756216,55.80549666,166.23,166.15,0.67000001]
[1762206756217,4.99243118,166.25,166.16,9.78882769]
[1762206756416,4.04434665,166.26,166.2,9.78882769]
[1762206756633,4.04434665,166.26,166.17,21.40416157]
[1762206756634,15.03705027,166.26,166.21,0.67]
[1762206757017,15.74705027,166.26,166.21,0.67]
[1762206757240,0.71,166.25,166.21,0.67]
[1762206758336,6.01539942,166.24,166.21,0.67]
[1762206759625,0.71,166.24,166.19,0.14216157]
[1762206759823,0.71,166.25,166.2,0.67]
[1762206761237,7.76808048,166.22,166.17,20.592]
[1762206761441,7.76808048,166.21,166.16,0.67]
[1762206761816,7.76808048,166.2,166.16,0.67]
[1762206762337,8.47808048,166.21,166.16,0.67]
[1762206762533,7.76808048,166.19,166.13,0.67]
[1762206762734,8.47808048,166.2,166.13,0.67]
[1762206762935,7.76808048,166.2,166.14,0.67]
[1762206763124,7.76808048,166.2,166.11,9.78882769]
[1762206763125,12.52210968,166.2,166.15,0.67000001]
[1762206763321,6.01720921,166.19,166.15,0.67000001]
[1762206763841,6.72720921,166.19,166.15,0.67000001]
[1762206764241,4.0474354,166.19,166.15,0.67000001]
[1762206764535,6.0169734,166.2,166.15,0.67000001]
[1762206764716,28.82717181,166.2,166.15,1e-08]
[1762206764915,12.52556943,166.19,166.15,1e-08]
[1762206765116,4.75748895,166.19,166.15,1e-08]
[1762206765338,6.0175713,166.18,166.15,0.67000001]
[1762206765537,6.0175713,166.18,166.15,1e-08]
[1762206768459,6.7275713,166.18,166.15,1e-08]
[1762206768632,0.71,166.17,166.15,1e-08]
[1762206770241,21.06149957,166.18,166.15,1e-08]
[1762206771172,15.75392827,166.18,166.15,1e-08]
[1762206771678,0.71,166.18,166.15,1e-08]
[1762206771870,6.01648516,166.21,166.16,0.67]
[1762206772171,6.01648516,166.21,166.17,9.78882769]
[1762206772373,6.01648516,166.21,166.18,0.67]
[1762206772374,10.06485623,166.21,166.18,0.67]
[1762206772576,6.01648516,166.21,166.18,0.67]
[1762206773146,21.05652086,166.22,166.18,0.67]
[1762206773348,21.76652086,166.22,166.18,0.67]
[1762206774174,21.05652086,166.22,166.18,0.67]
[1762206775165,15.04039765,166.22,166.18,0.67]
[1762206775574,6.01576129,166.23,166.18,0.67]
[1762206775767,10.773334,166.23,166.18,0.67]
[1762206776076,6.72576129,166.23,166.18,0.67]
[1762206776253,25.81273723,166.23,166.18,0.67]
[1762206776577,21.76516452,166.23,166.18,0.67]
[1762206776957,21.05516452,166.23,166.18,0.67]
[1762206777153,15.03940323,166.23,166.18,0.67]
[1762206777983,15.74940323,166.23,166.18,0.67]
[1762206778283,21.76516452,166.23,166.18,0.67]
[1762206782394,20.592,166.26,166.18,0.67]
[1762206782672,6.01424321,166.28,166.23,9.78882769]
[1762206782885,4.04888891,166.29,166.24,0.14216157]
[1762206783055,10.06140675,166.31,166.25,9.78882769]
[1762206783556,25.77357559,166.31,166.26,0.65]
[1762206783766,21.72503637,166.31,166.26,0.65]
[1762206783964,0.68,166.3,166.26,0.65]
[1762206784160,0.68,166.3,166.25,9.78882769]
[1762206784161,0.68,166.3,166.22,35.62339348]
[1762206784361,12.49156857,166.3,166.23,0.65]
[1762206784574,11.81172765,166.29,166.21,0.65]
[1762206784781,11.81172765,166.29,166.22,0.65]
[1762206784782,4.04364717,166.28,166.22,0.65]
[1762206785075,4.72364717,166.28,166.22,0.65]
[1762206785280,0.68,166.27,166.22,0.65]
[1762206785588,6.01503759,166.25,166.2,0.65]
[1762206785958,8.44808048,166.3,166.21,9.78882769]
[1762206786178,0.68,166.29,166.21,9.78882769]
[1762206786492,0.68,166.29,166.22,0.65]
[1762206786980,4.72333375,166.29,166.22,0.65]
[1762206787160,25.77116455,166.29,166.22,0.65]
[1762206787360,21.7278308,166.29,166.22,0.65]
[1762206788685,21.0478308,166.29,166.22,0.65]
[1762206788982,5.70517772,166.28,166.22,0.65]
[1762206789292,21.0478308,166.29,166.23,30.38082769]
[1762206789293,42.5,166.29,166.23,30.38082769]
[1762206789587,0.1,166.34,166.26,30.38082769]
[1762206789774,0.1,166.34,166.27,0.14216157]
[1762206789986,6.11190039,166.34,166.27,0.79216157]
[1762206790171,0.1,166.34,166.29,0.14216157]
[1762206790373,5.02517772,166.39,166.29,0.14216157]
[1762206790374,0.1,166.41,166.35,20.592]
[1762206790703,6.78968302,166.4,166.34,9.93098926]
[1762206790992,6.78968302,166.4,166.35,0.65]
[1762206791169,0.1,166.4,166.35,0.65]
[1762206791359,6.78961859,166.4,166.35,0.65]
[1762206791955,0.1,166.4,166.35,0.65]
[1762206792173,0.1,166.4,166.36,9.78882769]
[1762206792681,6.10961726,166.4,166.36,0.65]
[1762206794172,6.78961726,166.4,166.36,0.65]
[1762206796287,6.78961726,166.4,166.34,16.45039847]
[1762206796591,5.69672399,166.39,166.33,0.65]
[1762206796762,5.69672399,166.39,166.29,9.78882769]
[1762206796763,5.01672399,166.34,166.29,9.78882769]
[1762206796967,5.01672399,166.34,166.29,10.43882769]
[1762206797287,0.68,166.35,166.3,0.65]
[1762206797469,5.01672399,166.34,166.3,0.65]
[1762206797878,11.02886852,166.33,166.3,0.65]
[1762206798606,11.02886852,166.33,166.28,9.78882769]
[1762206798770,11.02886852,166.33,166.28,10.43882769]
[1762206798970,11.02886852,166.33,166.29,0.65]
[1762206799483,6.01214453,166.33,166.29,0.65]
[1762206799677,0.68,166.32,166.29,0.65]
[1762206799905,0.68,166.32,166.19,104.3]
[1762206799906,5.01672399,166.3,166.15,1e-08]
[1762206800201,5.01672399,166.25,166.21,18.72501129]
[1762206800377,5.01672399,166.27,166.21,0.65]
[1762206800578,5.01672399,166.27,166.22,20.592]
[1762206800779,5.01672399,166.26,166.21,0.65]
[1762206801074,0.68,166.25,166.17,20.592]
[1762206801274,5.01672399,166.21,166.16,0.65]
[1762206801672,5.69672399,166.2,166.15,1e-08]
[1762206801877,5.01672399,166.18,166.15,1e-08]
[1762206802176,5.01672399,166.17,166.15,1e-08]
[1762206802581,0.68,166.17,166.15,1e-08]
[1762206803179,5.69672399,166.17,166.15,1e-08]
[1762206803691,0.68,166.17,166.15,1e-08]
[1762206804002,6.01793344,166.17,166.15,1e-08]
[1762206804302,6.69793344,166.17,166.15,1e-08]
[1762206804980,20.592,166.2,166.15,1e-08]
[1762206804981,21.272,166.2,166.15,1e-08]
[1762206805182,6.69721181,166.19,166.15,1e-08]
[1762206806009,26.07695884,166.19,166.15,1e-08]
[1762206806199,5.69672399,166.18,166.15,1e-08]
[1762206806402,21.06023485,166.19,166.15,1e-08]
[1762206806403,11.0339358,166.19,166.15,1e-08]
[1762206806605,6.69721181,166.19,166.15,1e-08]
[1762206808592,6.01721181,166.19,166.16,0.69]
[1762206808786,6.01721181,166.19,166.15,0.69000001]
[1762206808986,6.67721181,166.19,166.15,1e-08]
[1762206809908,6.67721181,166.19,166.15,0.69000001]
[1762206810110,6.67721181,166.19,166.15,1e-08]
[1762206811015,6.01721181,166.19,166.15,1e-08]
[1762206811200,6.67721181,166.19,166.15,1e-08]
[1762206812189,6.01684717,166.2,166.15,0.69000001]
[1762206812613,6.72684717,166.2,166.15,0.69000001]
[1762206813019,6.01684717,166.2,166.15,0.69000001]
[1762206813217,63.092,166.23,166.15,21.28200001]
[1762206813218,6.72622012,166.22,166.15,21.28200001]
[1762206813514,6.72622012,166.22,166.15,0.69000001]
[1762206813717,11.74294411,166.22,166.15,9.7888277]
[1762206813910,11.74294411,166.22,166.15,10.5088277]
[1762206814208,6.72622012,166.22,166.16,0.72]
[1762206814414,21.76652814,166.22,166.16,0.72]
[1762206814605,6.01684717,166.2,166.16,0.72]
[1762206814813,6.72658134,166.21,166.16,0.72]
[1762206818198,0.71,166.2,166.15,30.3808277]
[1762206818618,6.72716916,166.2,166.15,31.1008277]
[1762206818818,6.72716916,166.2,166.15,30.3808277]
[1762206819004,6.72716916,166.2,166.16,0.72]
[1762206819511,6.01612321,166.22,166.16,0.72]
[1762206819695,6.72612321,166.22,166.16,0.72]
[1762206819896,0.71,166.21,166.15,30.3808277]
[1762206820196,0.71,166.21,166.15,31.1008277]
[1762206820598,6.01684717,166.2,166.15,31.1008277]
[1762206821106,0.71,166.19,166.15,31.1008277]
[1762206821822,0.71,166.19,166.15,20.59200001]
[1762206822505,0.71,166.19,166.15,21.31200001]
[1762206822708,6.72728016,166.19,166.15,21.31200001]
[1762206822910,6.01728016,166.19,166.15,21.31200001]
[1762206824109,6.01693486,166.2,166.16,0.72]
[1762206824498,6.72693486,166.2,166.16,0.72]
[1762206824698,0.71,166.2,166.15,20.59200001]
[1762206824906,0.71,166.2,166.15,21.31200001]
[1762206826523,6.01720921,166.19,166.15,21.31200001]
[1762206827225,6.72720921,166.19,166.15,21.31200001]
[1762206828699,6.01612321,166.22,166.16,0.72]
[1762206828905,6.72612321,166.22,166.16,0.72]
[1762206829216,21.05643123,166.22,166.16,0.72]
[1762206829418,0.71,166.21,166.16,0.72]
[1762206830507,6.01684717,166.2,166.15,20.59200001]
[1762206830706,6.01684717,166.2,166.15,21.31200001]
[1762206830896,6.72684717,166.2,166.16,0.72]
[1762206831319,0.71,166.19,166.15,20.59200001]
[1762206831920,0.71,166.19,166.15,21.31200001]
[1762206833305,6.72756608,166.19,166.15,21.31200001]
[1762206833506,5.02986447,166.16,166.15,1e-08]
[1762206833928,5.73986447,166.16,166.15,1e-08]
[1762206834808,21.302,166.16,166.15,1e-08]
[1762206835006,26.33186447,166.16,166.1,0.68052315]
[1762206835404,6.01865783,166.15,166.1,0.68052315]
[1762206835604,6.72828713,166.17,166.1,0.68052315]
[1762206835823,6.72828713,166.17,166.1,6.70098134]
[1762206836726,5.02986447,166.16,166.1,20.592]
[1762206837431,5.73986447,166.15,166.08,0.72]
[1762206837639,0.71,166.15,166.07,9.78882769]
[1762206837821,5.02986447,166.11,166.05,0.72]
[1762206838023,5.02986447,166.12,166.06,9.78882769]
[1762206839335,6.02010715,166.11,166.05,0.72]
[1762206839534,21.07037504,166.11,166.05,0.72]
[1762206839832,0.71,166.1,166.03,9.78882769]
[1762206840033,0.71,166.1,166.02,26.61527265]
[1762206840034,5.02986447,166.08,166.02,20.592]
[1762206840333,5.02986447,166.08,166.01,0.72]
[1762206840523,5.02986447,166.08,166.02,20.592]
[1762206840719,5.73986447,166.08,166.02,20.592]
[1762206840936,5.02986447,166.08,166.01,20.592]
[1762206841113,5.73986447,166.07,166.0,9.98882769]
[1762206841316,26.10658372,166.06,166.0,0.2]
[1762206841521,5.02986447,166.05,166.0,20.792]
[1762206841715,5.02986447,166.05,166.0,0.2]
[1762206841927,5.02986447,166.01,166.0,0.2]
[1762206842315,9.7752996,166.01,165.99,0.2]
[1762206842526,5.74986447,166.0,165.99,0.2]
[1762206842717,5.74986447,166.0,165.99,1e-08]
[1762206843120,5.02986447,165.97,165.96,0.2]
[1762206843434,11.05504974,165.97,165.96,0.2]
[1762206843637,11.77504974,165.97,165.96,0.2]
[1762206844026,6.0247542,165.99,165.96,0.2]
[1762206844735,6.7447542,165.99,165.96,0.2]
[1762206844931,4.03433394,166.0,165.96,0.2]
[1762206845146,6.0222383,166.06,165.97,9.78882769]
[1762206845329,6.0222383,166.06,165.99,9.78882769]
[1762206845528,10.05188617,166.06,165.99,9.78882769]
[1762206845944,6.7422383,166.06,165.99,9.78882769]
[1762206846146,4.02964787,166.05,165.99,9.78882769]
[1762206846832,0.72,166.04,165.96,6.22553477]
[1762206847034,7.77545683,166.02,165.96,20.792]
[1762206847240,24.62164787,166.03,165.96,0.2]
[1762206847433,6.02337067,166.02,165.96,0.2]
[1762206848136,0.72,166.01,165.96,0.2]
[1762206849543,6.74393808,166.01,165.96,0.2]
[1762206850336,21.80327185,166.01,165.96,0.2]
[1762206850951,0.72,166.0,165.96,0.2]
[1762206851751,6.0244593,165.99,165.96,0.2]
[1762206852949,0.72,166.0,165.96,0.87]
[1762206852950,6.02415733,166.0,165.96,0.87]
[1762206853363,6.74415733,166.0,165.96,0.87]
[1762206853850,6.74415733,166.0,165.96,0.2]
[1762206854359,6.74415733,166.0,165.96,0.87]
[1762206855150,6.02346733,166.02,165.96,0.2]
[1762206855342,6.02346733,166.02,165.97,0.67]
[1762206855953,6.74346733,166.02,165.97,0.67]
[1762206862068,21.80189402,166.02,165.97,0.67]
[1762206865980,6.02228244,166.05,165.98,9.93098926]
[1762206866352,6.74228244,166.05,165.99,0.67]
[1762206866866,6.74296542,166.04,165.99,0.67]
[1762206867374,0.72,166.03,165.99,0.67]
[1762206867765,6.02296542,166.04,165.99,0.67]
[1762206867941,6.72296542,166.04,165.99,0.67]
[1762206868356,6.72296542,166.04,165.99,6.69439977]
[1762206868750,6.72296542,166.04,166.0,0.69]
[1762206874983,6.72296542,166.04,165.99,6.02439977]
[1762206874984,6.02296542,166.04,165.99,6.02439977]
[1762206875166,0.68,166.03,165.96,0.2]
[1762206875480,25.10358925,166.05,165.99,0.7]
[1762206875481,6.70228244,166.05,165.99,0.7]
[1762206876055,6.02228244,166.05,165.99,0.7]
[1762206876258,0.68,166.04,165.99,0.7]
[1762206877154,6.02300789,166.03,165.99,0.7]
[1762206877361,6.02300789,166.03,165.99,6.72440617]
[1762206877576,6.70300789,166.03,165.99,6.72440617]
[1762206877755,3.02356817,166.0,165.96,0.2]
[1762206877949,3.70356817,165.99,165.96,0.2]
[1762206878156,0.68,165.99,165.96,0.2]
[1762206878390,4.02556606,166.01,165.97,0.7]
[1762206878556,6.02300789,166.03,165.97,0.7]
[1762206878557,10.72857395,166.03,165.97,0.7]
[1762206878753,0.68,166.02,165.97,0.7]
[1762206879077,6.02373351,166.01,165.96,10.83098926]
[1762206879476,6.70373351,166.01,165.97,0.7]
[1762206879670,6.02373351,166.01,165.97,0.7]
[1762206879974,6.70373351,166.01,165.97,0.7]
[1762206880178,10.74076136,166.01,165.97,0.7]
[1762206880361,6.70373351,166.01,165.97,0.7]
[1762206880572,10.74076136,166.01,165.97,0.7]
[1762206880771,10.06067464,166.02,165.97,6.72513965]
[1762206880959,4.03702785,166.01,165.97,6.72513965]
[1762206881161,6.70364679,166.02,165.98,0.7]
[1762206881354,4.04630311,166.01,165.98,0.7]
[1762206881669,6.70364679,166.02,165.98,0.7]
[1762206881980,4.04622772,166.01,165.98,0.7]
[1762206882163,6.70364679,166.02,165.98,0.7]
[1762206882476,4.73088954,166.01,165.96,16.85646371]
[1762206882668,4.05088954,166.0,165.96,16.85646371]
[1762206882864,0.68,166.01,165.97,0.7]
[1762206883077,4.05109279,166.0,165.97,0.7]
[1762206883259,4.05109279,165.99,165.97,0.7]
[1762206883455,6.02364679,166.02,165.97,0.7]
[1762206883770,4.73458055,166.01,165.97,0.7]
[1762206884093,4.05458055,166.0,165.97,0.7]
[1762206884379,4.05458055,165.99,165.97,0.7]
[1762206884579,6.70364679,166.02,165.97,0.7]
[1762206884779,4.73892677,166.01,165.97,0.7]
[1762206884970,4.05892677,166.0,165.97,0.7]
[1762206885170,0.68,166.01,165.97,0.7]
[1762206885371,4.05899815,166.0,165.97,0.7]
[1762206885559,6.70364679,166.02,165.97,0.7]
[1762206885765,4.05899815,166.01,165.97,6.72512039]
[1762206885979,4.05899815,166.0,165.97,0.7]
[1762206886175,0.68,166.04,165.98,0.7]
[1762206886381,4.05907896,166.03,165.98,0.7]
[1762206886574,4.05907896,166.02,165.98,0.7]
[1762206886778,4.05907896,166.01,165.98,0.7]
[1762206886984,4.05907896,166.0,165.98,0.7]
[1762206887178,0.68,166.03,165.98,0.7]
[1762206887382,4.05996299,166.02,165.98,0.7]
[1762206887581,4.05996299,166.01,165.98,0.7]
[1762206887783,4.05996299,166.0,165.98,0.7]
[1762206888078,4.05964274,166.02,165.99,9.93098926]
[1762206888280,4.06033492,166.04,165.99,9.93098926]
[1762206888582,6.70159406,166.07,166.01,9.93098926]
[1762206888779,4.06005318,166.06,166.01,9.93098926]
[1762206888988,4.06005318,166.05,166.01,10.63098926]
[1762206889178,6.02129177,166.08,166.02,0.7]
[1762206889387,4.05929174,166.07,166.02,0.7]
[1762206889589,0.68,166.08,166.02,6.72323831]
[1762206889889,4.05898933,166.07,166.02,6.72323831]
[1762206890098,6.70121738,166.08,166.02,6.72323831]
[1762206890270,4.05898882,166.07,166.02,6.72323831]
[1762206890466,6.70121738,166.08,166.03,0.7]
[1762206890697,20.592,166.11,166.04,9.93098926]
[1762206890878,4.73727895,166.1,166.04,9.93098926]
[1762206891079,4.05727895,166.09,166.04,0.84216157]
[1762206891276,4.73541316,166.09,166.04,0.84216157]
[1762206891477,6.70124658,166.08,166.04,0.84216157]
[1762206891770,4.05541316,166.07,166.02,0.7]
[1762206891976,4.05541316,166.06,166.02,0.7]
[1762206892171,4.73541316,166.08,166.02,0.7]
[1762206892383,6.70122742,166.08,166.02,0.7]
[1762206892768,10.75545332,166.08,166.02,0.7]
[1762206892967,6.70122742,166.08,166.02,0.7]
[1762206893478,4.73393784,166.07,166.01,9.93098926]